[Event "WYCC 2018 G18"]
[Site "Halkidiki"]
[Date "2018.10.23"]
[Round "5"]
[White "Rozman, Monika"]
[Black "Injac, Teodora"]
[Result "0-1"]
[ECO "B90"]
[WhiteElo "2141"]
[BlackElo "2258"]
[Annotator "NA"]
[PlyCount "86"]
[EventDate "2018.10.20"]
[EventType "swiss"]
[EventCountry "GRE"]
[SourceTitle "playchess.com"]
[Source "ChessBase"]
[SourceQuality "1"]
[TimeControl "40/5400+30:1800+30"]

1. e4 {[%emt 0:00:00]} c5 {[%emt 0:00:00]} 2. Nf3 {[%emt 0:00:00]} d6 {[%emt 0:00:00]} 3. d4 {[%emt 0:00:00]} cxd4 {[%emt 0:00:00]} 4. Nxd4 {[%emt 0:00:00]} Nf6 {[%emt 0:00:00]} 5. Nc3 {[%emt 0:00:00]} a6 {[%emt 0:00:00]} 6. Be3 {[%emt 0:00:00]} e5 {[%emt 0:00:02]} 7. Nf3 {[%emt 0:00:03]} Nc6 {[%emt 0:00:48]} 8. Bc4 {[%emt 0:00:53]} Be6 {[%emt 0:00:44]} 9. Bb3 {[%emt 0:00:38]} Be7 {[%emt 0:00:58]} 10. O-O {[%emt 0:00:43]} O-O {[%emt 0:00:30]} 11. Bg5 {[%emt 0:01:17]} Nd7 {[%emt 0:00:41] B90: Sicilian Najdorf: Unusual White 6th moves, 6 Be3 Ng4 and 6 Be3 e5} 12. Bxe7 {[%emt 0:01:19]} Qxe7 {[%emt 0:00:04]} 13. Qe2 {[%emt 0:04:16]} (13. Nd5 Qd8 14. Qe2 Nc5 15. Rfd1 h6 16. Qe3 Nxb3 17. axb3 Ne7 18. Nb6 Rb8 19. Nxe5 {1-0 (42) Grischuk,A (2761)-Topalov,V (2749) Paris 2017}) 13... Nc5 {[%emt 0:03:02]} 14. Rad1 {[%emt 0:10:09] [#]} Rad8 $146 {[%emt 0:04:25]} ({Predecessor:} 14... b5 15. Bd5 Qc7 16. h3 Rad8 17. a3 Ne7 18. Qe3 h6 19. Rd2 {½-½ (40) Tologontegin,S (2388)-Smikovski,I (2555) Tomsk 2008}) 15. Rfe1 {[%emt 0:02:44]} b5 {[%emt 0:04:40]} 16. Nd5 {[%emt 0:03:25]} Qb7 {[%emt 0:05:25]} 17. c3 {[%emt 0:08:11]} a5 {[%emt 0:30:04]} 18. h3 {[%emt 0:07:57]} b4 {[%emt 0:00:59]} 19. Bc2 {[%emt 0:03:02]} Ne7 {[%emt 0:02:47]} 20. c4 {[%emt 0:04:32]} Bxd5 {[%emt 0:04:33]} 21. exd5 {[%emt 0:01:52]} f5 {[%emt 0:04:30]} 22. b3 {[%emt 0:05:02]} Ng6 $15 {[%emt 0:02:09]} 23. Kh2 {[%emt 0:08:02]} Rde8 {[%emt 0:01:05]} 24. Rg1 {[%emt 0:05:27]} Qe7 {[%emt 0:03:29]} 25. g4 {[%emt 0:10:20]} e4 {[%emt 0:08:43]} 26. Nd4 {[%emt 0:08:12]} Qe5+ {[%emt 0:06:29]} 27. Kh1 {[%emt 0:00:19]} f4 {[%emt 0:06:27]} 28. f3 {[%emt 0:02:08]} exf3 {[%emt 0:00:44]} 29. Qxf3 {[%emt 0:00:13]} Qg5 {[%emt 0:03:05]} 30. Ne6 {[%emt 0:06:55]} Nxe6 {[%emt 0:00:19]} 31. dxe6 {[%emt 0:00:04]} Rxe6 {[%emt 0:03:00]} 32. Qd5 {[%emt 0:00:35]} Qxd5+ {[%emt 0:00:28]} 33. Rxd5 {[%emt 0:00:05]} Nh4 {[%emt 0:00:46]} 34. Rh5 {[%emt 0:02:43]} Rh6 {[%emt 0:01:39]} 35. Rxa5 {[%emt 0:01:35]} Nf3 {[%emt 0:00:29]} 36. Rf1 {[%emt 0:00:40]} Rxh3+ {[%emt 0:00:31]} 37. Kg2 {[%emt 0:00:03]} Rg3+ {[%emt 0:00:15]} 38. Kf2 {[%emt 0:00:16]} Ne5 {[%emt 0:01:11]} 39. Bf5 {[%emt 0:03:42]} Nxg4+ {[%emt 0:01:03]} 40. Ke1 {[%emt 0:00:00]} Re8+ {[%emt 0:00:00]} 41. Kd2 {[%emt 0:01:56]} Rg2+ {[%emt 0:04:42]} 42. Kc1 {[%emt 0:00:34]} Ne3 {[%emt 0:01:06]} 43. Re1 {[%emt 0:00:46]} f3 {[%emt 0:01:45]} 0-1

[Event "WYCC 2018 G18"]
[Site "Halkidiki"]
[Date "2018.10.23"]
[Round "5"]
[White "Egyed, Judit"]
[Black "Koehler, Inken"]
[Result "0-1"]
[ECO "B43"]
[WhiteElo "2089"]
[BlackElo "1934"]
[Annotator "NA"]
[PlyCount "84"]
[EventDate "2018.10.20"]
[EventType "swiss"]
[EventCountry "GRE"]
[SourceTitle "playchess.com"]
[Source "ChessBase"]
[SourceQuality "1"]
[TimeControl "40/5400+30:1800+30"]

1. e4 {[%emt 0:00:00]} c5 {[%emt 0:00:00]} 2. Nf3 {[%emt 0:00:00]} e6 {[%emt 0:00:00]} 3. d4 {[%emt 0:00:00]} cxd4 {[%emt 0:00:00]} 4. Nxd4 {[%emt 0:00:01]} a6 {[%emt 0:00:10]} 5. Nc3 {[%emt 0:00:03]} Qc7 {[%emt 0:00:13]} 6. Be3 {[%emt 0:00:06]} Bb4 {[%emt 0:01:15]} 7. Nde2 {[%emt 0:03:55]} Nf6 {[%emt 0:00:48]} 8. a3 {[%emt 0:03:22]} Be7 {[%emt 0:00:53]} 9. h3 {[%emt 0:07:29]} b5 {[%emt 0:03:22]} 10. g4 {[%emt 0:11:37]} Bb7 {[%emt 0:01:44]} 11. Bg2 {[%emt 0:00:57]} d6 {[%emt 0:01:52]} 12. Nd4 {[%emt 0:07:24]} Nc6 {[%emt 0:06:13]} 13. Nxc6 {[%emt 0:00:30]} Bxc6 {[%emt 0:00:21]} 14. Bd4 {[%emt 0:13:20]} O-O {[%emt 0:06:30]} 15. g5 {[%emt 0:16:11]} Nd7 {[%emt 0:00:53]} 16. Qg4 {[%emt 0:01:55]} Ne5 $17 {[%emt 0:08:16]} 17. Qg3 {[%emt 0:01:39]} f5 {[%emt 0:16:50]} 18. gxf6 {[%emt 0:02:20]} Bxf6 {[%emt 0:00:30]} 19. Ne2 {[%emt 0:00:57]} Qe7 {[%emt 0:13:28]} 20. h4 {[%emt 0:04:07]} Rac8 {[%emt 0:00:36]} 21. c3 {[%emt 0:04:18]} Qb7 {[%emt 0:09:56]} 22. f3 {[%emt 0:02:30]} Nd3+ {[%emt 0:03:42]} 23. Kd2 {[%emt 0:02:59]} Nxb2 {[%emt 0:01:04]} 24. Bh3 {[%emt 0:00:32]} Nc4+ {[%emt 0:01:35]} 25. Kc2 {[%emt 0:02:57]} Qe7 {[%emt 0:04:19]} 26. Rhg1 {[%emt 0:02:21]} Bd7 {[%emt 0:06:14]} 27. Kb3 {[%emt 0:05:22]} Nd2+ {[%emt 0:03:07]} 28. Kb2 {[%emt 0:01:02]} Nxf3 {[%emt 0:00:26]} 29. Bxf6 {[%emt 0:02:31]} Rxf6 {[%emt 0:00:45]} 30. Raf1 {[%emt 0:00:29]} Nxg1 {[%emt 0:01:23]} 31. Nxg1 {[%emt 0:04:01]} Rxf1 {[%emt 0:01:38]} 32. Bxf1 {[%emt 0:00:03]} e5 {[%emt 0:01:02]} 33. Nf3 {[%emt 0:00:30]} Rf8 {[%emt 0:01:15]} 34. Be2 {[%emt 0:00:40]} Rf4 {[%emt 0:01:08]} 35. h5 {[%emt 0:00:04]} Rxe4 {[%emt 0:01:54]} 36. Qf2 {[%emt 0:01:12]} Qf6 {[%emt 0:00:45]} 37. Qg2 {[%emt 0:00:35]} Rxe2+ {[%emt 0:01:34]} 38. Qxe2 {[%emt 0:00:03]} Bg4 {[%emt 0:00:07]} 39. Qe3 {[%emt 0:00:18]} Qxf3 {[%emt 0:00:43]} 40. Qa7 {[%emt 0:00:00]} Qe2+ {[%emt 0:00:00]} 41. Kc1 {[%emt 0:00:23]} Qd1+ {[%emt 0:01:25]} 42. Kb2 {[%emt 0:00:22]} Qd2+ {[%emt 0:00:15]} 0-1

[Event "WYCC 2018 G18"]
[Site "Halkidiki"]
[Date "2018.10.23"]
[Round "5"]
[White "Janiashvili, Mariami"]
[Black "Avramidou, Anastasia"]
[Result "1/2-1/2"]
[ECO "E12"]
[WhiteElo "2081"]
[BlackElo "2285"]
[Annotator "NA"]
[PlyCount "81"]
[EventDate "2018.10.20"]
[EventType "swiss"]
[EventCountry "GRE"]
[SourceTitle "playchess.com"]
[Source "ChessBase"]
[SourceQuality "1"]
[TimeControl "40/5400+30:1800+30"]

1. d4 {[%emt 0:00:00]} Nf6 {[%emt 0:00:00]} 2. c4 {[%emt 0:00:00]} e6 {[%emt 0:00:00]} 3. Nf3 {[%emt 0:00:16]} b6 {[%emt 0:00:00]} 4. a3 {[%emt 0:00:06]} Ba6 {[%emt 0:00:00]} 5. Qc2 {[%emt 0:00:57]} Bb7 {[%emt 0:00:11]} 6. Nc3 {[%emt 0:00:23]} c5 {[%emt 0:00:19]} 7. dxc5 {[%emt 0:00:40]} bxc5 {[%emt 0:00:25]} 8. Bf4 {[%emt 0:00:49]} Be7 {[%emt 0:00:32]} 9. e3 {[%emt 0:01:12] E12: Queen's Indian: Unusual White 4th moves, 4 a3, 4 Nc3 Bb7 5 a3 and 4 Nc3 Bb7} (9. Rd1 O-O 10. e3 Qb6 11. Be2 d6 12. O-O h6 13. Rd2 Nh5 14. Bg3 Nxg3 15. hxg3 Rd8 16. Rfd1 Nd7 17. Ne1 {1-0 (60) Bartel,M (2658)-Olszewski,M (2539) Warsaw 2012}) 9... O-O {[%emt 0:02:14]} 10. Be2 {[%emt 0:02:31]} a6 {[%emt 0:02:22]} 11. h3 {[%emt 0:00:39]} Nc6 $146 {[%emt 0:07:40]} ({Predecessor:} 11... d6 12. O-O Nc6 13. Rfd1 Qc7 14. Ng5 h6 15. Nge4 Nxe4 16. Nxe4 {0-1 (67) Zherebtsova,A (2159)-Soyunlu,N (2095) Baku 2016}) 12. O-O {[%emt 0:03:49]} Rc8 {[%emt 0:00:08]} 13. Rfd1 {[%emt 0:01:16]} d6 {[%emt 0:11:29]} 14. Rd2 {[%emt 0:10:55]} Qc7 {[%emt 0:01:05]} 15. Rad1 {[%emt 0:03:11]} Rfd8 {[%emt 0:00:13]} 16. Ng5 {[%emt 0:09:01]} Na5 {[%emt 0:13:37]} 17. Nge4 {[%emt 0:17:10]} Nxe4 {[%emt 0:01:56]} 18. Nxe4 {[%emt 0:00:03]} e5 {[%emt 0:00:24]} 19. Bg3 {[%emt 0:06:37]} Qc6 {[%emt 0:07:03]} 20. Bf3 {[%emt 0:01:45]} Qb6 {[%emt 0:00:23]} 21. Nc3 {[%emt 0:03:58]} Bxf3 {[%emt 0:11:32]} 22. gxf3 {[%emt 0:00:02]} Qb3 {[%emt 0:02:56]} 23. Nd5 {[%emt 0:01:48]} Qxc2 {[%emt 0:00:21]} 24. Rxc2 {[%emt 0:01:34]} Kf8 {[%emt 0:00:07]} 25. f4 {[%emt 0:04:13]} f6 {[%emt 0:05:53]} 26. f3 {[%emt 0:00:11]} Kf7 {[%emt 0:01:45]} (26... Nb3 $14) 27. Be1 {[%emt 0:02:25]} Nc6 $11 {[%emt 0:00:05]} 28. Bc3 {[%emt 0:06:08]} g6 {[%emt 0:05:40]} 29. Rcd2 {[%emt 0:00:37]} Bf8 {[%emt 0:05:05]} 30. Rd3 {[%emt 0:02:26]} Ke6 {[%emt 0:03:03]} 31. Be1 {[%emt 0:03:27]} Bg7 {[%emt 0:02:42]} 32. Kg2 {[%emt 0:05:43]} h6 {[%emt 0:02:45]} 33. b4 {[%emt 0:03:37]} cxb4 {[%emt 0:06:52]} 34. axb4 {[%emt 0:00:08]} Na7 {[%emt 0:00:10]} 35. c5 {[%emt 0:03:48]} dxc5 {[%emt 0:02:12]} 36. bxc5 {[%emt 0:00:30]} Nc6 {[%emt 0:02:18]} 37. fxe5 {[%emt 0:04:09]} fxe5 {[%emt 0:00:32]} 38. Nb6 {[%emt 0:01:00]} Rxd3 {[%emt 0:00:20]} 39. Rxd3 {[%emt 0:00:03]} Rd8 {[%emt 0:00:05]} 40. Ra3 {[%emt 0:00:00]} Rd1 {[%emt 0:00:00]} 41. Kf2 {[%emt 0:05:04]} 1/2-1/2

[Event "WYCC 2018 G18"]
[Site "Halkidiki"]
[Date "2018.10.23"]
[Round "5"]
[White "Limanovska, Elizabete"]
[Black "Muratova, Saltanat"]
[Result "1-0"]
[ECO "B33"]
[WhiteElo "2072"]
[BlackElo "1859"]
[Annotator "NA"]
[PlyCount "141"]
[EventDate "2018.10.20"]
[EventType "swiss"]
[EventCountry "GRE"]
[SourceTitle "playchess.com"]
[Source "ChessBase"]
[SourceQuality "1"]
[TimeControl "40/5400+30:1800+30"]

1. e4 {[%emt 0:00:00]} c5 {[%emt 0:00:00]} 2. Nf3 {[%emt 0:00:00]} Nc6 {[%emt 0:00:05]} 3. d4 {[%emt 0:00:00]} cxd4 {[%emt 0:00:06]} 4. Nxd4 {[%emt 0:00:00]} Nf6 {[%emt 0:00:09]} 5. Nc3 {[%emt 0:03:31]} e5 {[%emt 0:00:26]} 6. Ndb5 {[%emt 0:01:15]} d6 {[%emt 0:00:08]} 7. Bg5 {[%emt 0:00:54]} a6 {[%emt 0:00:07]} 8. Na3 {[%emt 0:00:07]} b5 {[%emt 0:00:06]} 9. Nd5 {[%emt 0:00:05]} Be7 {[%emt 0:00:08]} 10. Bxf6 {[%emt 0:00:06]} Bxf6 {[%emt 0:00:06]} 11. c3 {[%emt 0:01:45]} O-O {[%emt 0:01:41]} 12. Nc2 {[%emt 0:03:43]} Bg5 {[%emt 0:01:00]} 13. a4 {[%emt 0:03:44]} bxa4 {[%emt 0:00:14]} 14. Rxa4 $14 {[%emt 0:04:08] LiveBook: 1681 Games} a5 {[%emt 0:02:00]} 15. Bc4 {[%emt 0:01:53]} Rb8 {[%emt 0:00:54]} 16. Ra2 {[%emt 0:03:59]} Kh8 {[%emt 0:01:37]} 17. Nce3 {[%emt 0:09:19]} Ne7 {[%emt 0:08:41]} 18. O-O {[%emt 0:07:36]} f5 {[%emt 0:03:48]} 19. Nxe7 {[%emt 0:02:40]} Bxe7 {[%emt 0:00:27]} 20. Nxf5 {[%emt 0:02:23]} Bxf5 {[%emt 0:00:09]} 21. exf5 {[%emt 0:00:02]} Rxf5 {[%emt 0:00:07]} 22. Qd5 {[%emt 0:10:43]} Qf8 {[%emt 0:28:08]} 23. Rxa5 {[%emt 0:04:49]} Rxb2 {[%emt 0:04:08]} 24. Ra8 {[%emt 0:01:54]} Bd8 {[%emt 0:09:37]} 25. f3 {[%emt 0:08:07]} Rg5 {[%emt 0:08:33]} 26. Rf2 {[%emt 0:00:37]} Rxf2 {[%emt 0:02:38]} 27. Kxf2 {[%emt 0:00:05]} e4 {[%emt 0:00:17]} 28. Qg8+ {[%emt 0:18:44]} Qxg8 {[%emt 0:00:07]} 29. Bxg8 {[%emt 0:00:03]} Kxg8 {[%emt 0:09:47]} 30. Rxd8+ {[%emt 0:00:06]} Kf7 {[%emt 0:00:08]} 31. Rxd6 {[%emt 0:00:19]} exf3 {[%emt 0:00:08]} 32. Kxf3 {[%emt 0:00:43]} Rc5 {[%emt 0:01:13]} 33. Rd3 {[%emt 0:00:07]} Ke6 {[%emt 0:02:38]} 34. Ke3 {[%emt 0:01:30]} Rh5 {[%emt 0:03:44]} 35. h3 {[%emt 0:00:35]} Rg5 {[%emt 0:00:05]} 36. Rd2 {[%emt 0:00:35]} Ke5 {[%emt 0:00:39]} 37. g4 {[%emt 0:02:57]} Rg6 {[%emt 0:03:35]} 38. c4 {[%emt 0:00:26]} Ra6 {[%emt 0:02:59]} 39. Rd5+ {[%emt 0:00:31]} Ke6 {[%emt 0:00:06]} 40. Kd4 {[%emt 0:00:00]} Ra3 {[%emt 0:00:00]} 41. Re5+ {[%emt 0:03:45]} Kd6 {[%emt 0:01:21]} 42. c5+ {[%emt 0:01:51]} Kc6 {[%emt 0:01:17]} 43. Re6+ {[%emt 0:00:18]} Kd7 {[%emt 0:00:21]} 44. Re3 {[%emt 0:01:02]} Ra1 {[%emt 0:00:23]} 45. Rb3 {[%emt 0:05:27]} Kc6 {[%emt 0:01:47]} 46. Rb6+ {[%emt 0:00:12]} Kc7 {[%emt 0:00:09]} 47. Re6 {[%emt 0:01:04]} Kd7 {[%emt 0:00:32]} 48. Re3 {[%emt 0:00:20]} Rc1 {[%emt 0:02:02]} 49. Rc3 {[%emt 0:00:26]} Rd1+ {[%emt 0:00:47]} 50. Rd3 {[%emt 0:00:10]} Rc1 {[%emt 0:00:12]} 51. Kd5 {[%emt 0:00:04]} Kc7 {[%emt 0:00:25]} 52. Ra3 {[%emt 0:04:38]} Rd1+ {[%emt 0:00:49]} 53. Ke6 {[%emt 0:03:11]} Kc6 {[%emt 0:02:38]} 54. Kf7 {[%emt 0:00:34]} Rd7+ {[%emt 0:01:20]} 55. Kg8 {[%emt 0:00:53]} h6 {[%emt 0:04:53]} 56. Ra6+ {[%emt 0:00:50]} Kxc5 {[%emt 0:01:29]} 57. Rg6 {[%emt 0:00:25]} Rd3 {[%emt 0:01:08]} 58. h4 {[%emt 0:00:53]} h5 {[%emt 0:02:41]} 59. Rg5+ {[%emt 0:00:37]} Kd6 {[%emt 0:01:00]} 60. Rxh5 {[%emt 0:00:37]} Rg3 {[%emt 0:01:04]} 61. Rg5 {[%emt 0:00:25]} Ke6 {[%emt 0:00:51]} 62. Kxg7 {[%emt 0:00:20]} Rc3 {[%emt 0:01:29]} 63. h5 {[%emt 0:02:18]} Rc7+ {[%emt 0:00:04]} 64. Kg6 {[%emt 0:00:07]} Rc8 {[%emt 0:00:04]} 65. h6 {[%emt 0:01:23]} Rg8+ {[%emt 0:00:04]} 66. Kh5 {[%emt 0:00:03]} Rh8 {[%emt 0:00:09]} 67. Rg7 {[%emt 0:01:04]} Kf6 {[%emt 0:00:04]} 68. g5+ {[%emt 0:00:03]} Kf5 {[%emt 0:00:04]} 69. Rf7+ {[%emt 0:00:06]} Ke6 {[%emt 0:00:04]} 70. Kg6 {[%emt 0:00:57]} Rg8+ {[%emt 0:00:05]} 71. Rg7 {[%emt 0:00:04]} 1-0

[Event "WYCC 2018 G18"]
[Site "Halkidiki"]
[Date "2018.10.23"]
[Round "5"]
[White "Vanduyfhuys, Daria"]
[Black "Simic, Anja"]
[Result "1-0"]
[ECO "E15"]
[WhiteElo "2058"]
[BlackElo "1813"]
[Annotator "NA"]
[PlyCount "73"]
[EventDate "2018.10.20"]
[EventType "swiss"]
[EventCountry "GRE"]
[SourceTitle "playchess.com"]
[Source "ChessBase"]
[SourceQuality "1"]
[TimeControl "40/5400+30:1800+30"]

1. d4 {[%emt 0:00:00]} Nf6 {[%emt 0:00:00]} 2. c4 {[%emt 0:00:00]} e6 {[%emt 0:00:00]} 3. Nf3 {[%emt 0:00:00]} b6 {[%emt 0:00:00]} 4. g3 {[%emt 0:00:05]} Bb7 {[%emt 0:00:18]} 5. Bg2 {[%emt 0:00:08]} d5 {[%emt 0:00:40]} 6. O-O {[%emt 0:00:22]} Be7 {[%emt 0:00:44]} 7. Nc3 {[%emt 0:01:23]} O-O {[%emt 0:03:40]} 8. b3 {[%emt 0:06:53]} Nbd7 {[%emt 0:06:53]} 9. cxd5 {[%emt 0:05:28]} Nxd5 {[%emt 0:06:13]} 10. Nxd5 {[%emt 0:01:24]} Bxd5 {[%emt 0:03:38]} 11. Bb2 {[%emt 0:00:51]} Nf6 $11 {[%emt 0:10:37]} 12. Rc1 {[%emt 0:03:13]} Rc8 {[%emt 0:09:17]} 13. Qd3 {[%emt 0:15:03]} c5 {[%emt 0:21:51]} 14. Rfd1 {[%emt 0:01:44]} cxd4 {[%emt 0:09:13]} 15. Bxd4 {[%emt 0:03:21]} h6 {[%emt 0:07:13]} 16. Qb1 {[%emt 0:10:32]} Rxc1 {[%emt 0:02:59]} 17. Qxc1 {[%emt 0:01:37]} Qc8 {[%emt 0:02:21]} 18. Ne5 {[%emt 0:05:25]} Bxg2 {[%emt 0:04:06]} 19. Kxg2 {[%emt 0:00:15]} Qb7+ {[%emt 0:03:20]} 20. Qc6 {[%emt 0:00:31]} Rb8 {[%emt 0:03:34]} 21. Rc1 {[%emt 0:07:20]} Qxc6+ {[%emt 0:02:37]} 22. Rxc6 {[%emt 0:02:35]} Rb7 {[%emt 0:01:05]} 23. Rc8+ {[%emt 0:00:56]} Bf8 {[%emt 0:00:24]} 24. Bb2 {[%emt 0:01:23]} b5 {[%emt 0:00:36]} 25. Bd4 {[%emt 0:00:14]} Nh7 {[%emt 0:00:33]} 26. Nc6 {[%emt 0:05:36]} a6 {[%emt 0:00:33]} 27. Kf3 {[%emt 0:01:46]} f6 {[%emt 0:00:30]} 28. Bc5 {[%emt 0:03:42]} e5 {[%emt 0:00:33]} 29. Nd8 {[%emt 0:00:23]} Rd7 {[%emt 0:00:25]} 30. Ne6 {[%emt 0:00:18]} Rf7 {[%emt 0:00:15]} 31. Ke4 {[%emt 0:00:56]} Ng5+ {[%emt 0:00:42]} 32. Nxg5 {[%emt 0:00:17]} hxg5 {[%emt 0:00:06]} 33. Kf5 {[%emt 0:01:24]} a5 {[%emt 0:00:21]} 34. g4 {[%emt 0:01:10]} a4 {[%emt 0:00:15]} 35. e4 {[%emt 0:01:04]} axb3 {[%emt 0:00:07]} 36. axb3 {[%emt 0:00:03]} g6+ {[%emt 0:01:37]} 37. Kxg6 {[%emt 0:00:11]} 1-0

[Event "WYCC 2018 G18"]
[Site "Halkidiki"]
[Date "2018.10.23"]
[Round "5"]
[White "Redondo Benavente, Ana"]
[Black "Chitlange Sakshi"]
[Result "1/2-1/2"]
[ECO "B12"]
[WhiteElo "2055"]
[BlackElo "2237"]
[Annotator "ChessBase"]
[PlyCount "155"]
[EventDate "2018.10.20"]
[EventType "swiss"]
[EventCountry "GRE"]
[SourceTitle "playchess.com"]
[Source "ChessBase"]
[SourceQuality "1"]
[TimeControl "40/5400+30:1800+30"]

1. e4 {[%emt 0:00:00]} c6 {[%emt 0:00:00]} 2. d4 {[%emt 0:00:00]} d5 {[%emt 0:00:00]} 3. e5 {[%emt 0:00:00]} Bf5 {[%emt 0:00:03]} 4. h4 {[%emt 0:00:19]} h5 {[%emt 0:00:43]} 5. Bd3 {[%emt 0:00:39]} Bxd3 {[%emt 0:00:20]} 6. Qxd3 {[%emt 0:00:06]} e6 {[%emt 0:00:41]} 7. Bg5 {[%emt 0:00:43]} Qb6 {[%emt 0:03:40]} 8. Nd2 {[%emt 0:01:12]} Qa6 {[%emt 0:02:48]} 9. c4 {[%emt 0:01:54]} Bb4 {[%emt 0:06:33]} 10. b3 {[%emt 0:03:31]} Ne7 {[%emt 0:00:38]} 11. Ngf3 {[%emt 0:04:09]} Nd7 {[%emt 0:07:57]} 12. O-O {[%emt 0:00:51]} Nf5 {[%emt 0:00:23]} 13. Rfd1 {[%emt 0:06:33]} O-O {[%emt 0:03:20]} 14. Nf1 {[%emt 0:05:36]} dxc4 {[%emt 0:04:47]} 15. bxc4 {[%emt 0:00:49]} Nb6 {[%emt 0:00:06]} 16. a3 {[%emt 0:06:03]} Ba5 {[%emt 0:03:32]} 17. Rac1 {[%emt 0:01:56]} Na4 {[%emt 0:00:55]} 18. Qb3 {[%emt 0:02:06]} Bd8 {[%emt 0:02:42]} 19. Ne3 {[%emt 0:09:44]} Bxg5 {[%emt 0:08:28]} 20. hxg5 {[%emt 0:00:43]} Ne7 {[%emt 0:03:26]} 21. Nd2 {[%emt 0:07:27]} Nb6 {[%emt 0:02:57]} 22. Ne4 {[%emt 0:07:22]} Nd7 {[%emt 0:00:52]} 23. Ng3 {[%emt 0:01:38]} h4 {[%emt 0:03:09]} 24. Ne4 {[%emt 0:00:09]} Ng6 {[%emt 0:01:09]} 25. Ng4 {[%emt 0:04:12]} c5 {[%emt 0:05:20]} 26. d5 {[%emt 0:08:48]} exd5 {[%emt 0:02:32]} 27. Rxd5 {[%emt 0:05:36]} Qe6 {[%emt 0:00:55]} 28. Qd1 {[%emt 0:04:56]} Ndxe5 {[%emt 0:02:49]} 29. Nxe5 {[%emt 0:00:01]} Nxe5 {[%emt 0:00:06]} 30. Nxc5 {[%emt 0:00:12]} Qe7 {[%emt 0:01:06]} 31. Qd4 {[%emt 0:02:33]} Qxg5 {[%emt 0:08:26]} 32. Rc3 {[%emt 0:00:16]} Nc6 {[%emt 0:00:26]} 33. Rxg5 {[%emt 0:05:31]} Nxd4 {[%emt 0:00:00]} 34. Rh3 {[%emt 0:02:26]} f6 {[%emt 0:10:46]} 35. Rg4 {[%emt 0:00:01]} Nf5 {[%emt 0:00:04]} 36. Rf3 {[%emt 0:02:03]} Nh6 {[%emt 0:03:34]} 37. Rxh4 {[%emt 0:00:08]} Rf7 {[%emt 0:05:09]} 38. Ne4 {[%emt 0:01:47]} Raf8 {[%emt 0:03:11]} 39. Nc3 {[%emt 0:03:55]} Rd7 {[%emt 0:02:07]} 40. Nd5 {[%emt 0:00:00]} f5 {[%emt 0:00:00]} 41. Rd3 {[%emt 0:06:01]} Kf7 {[%emt 0:05:36]} 42. f3 {[%emt 0:02:22]} Re8 {[%emt 0:03:14]} 43. Kf2 {[%emt 0:00:24]} Rd6 {[%emt 0:01:32]} 44. Rhd4 {[%emt 0:01:35]} Red8 {[%emt 0:03:49]} 45. a4 {[%emt 0:02:47]} Ng8 {[%emt 0:00:33]} 46. a5 {[%emt 0:08:18]} Ne7 {[%emt 0:01:13]} 47. Rb3 {[%emt 0:01:06]} R8d7 {[%emt 0:01:57]} 48. Rb5 {[%emt 0:05:39]} Ng6 {[%emt 0:03:03]} 49. g4 {[%emt 0:02:05]} fxg4 {[%emt 0:00:50]} 50. Rxg4 {[%emt 0:00:51]} Ne5 {[%emt 0:02:00]} 51. Rf4+ {[%emt 0:00:21]} Kg8 {[%emt 0:00:30]} 52. Re4 {[%emt 0:01:00]} Nc6 {[%emt 0:04:32]} 53. a6 {[%emt 0:03:22]} bxa6 {[%emt 0:01:15]} 54. Rc5 {[%emt 0:00:59]} Kf8 {[%emt 0:02:01]} 55. Ne3 {[%emt 0:00:32]} g6 {[%emt 0:01:20]} 56. Rg5 {[%emt 0:00:59]} a5 {[%emt 0:02:18]} 57. c5 {[%emt 0:00:17]} Rf6 {[%emt 0:00:28]} 58. Ng4 {[%emt 0:00:39]} Rf5 {[%emt 0:00:02]} 59. Rxg6 {[%emt 0:00:19]} Rxc5 {[%emt 0:01:24]} 60. Rf4+ {[%emt 0:01:55]} Ke7 {[%emt 0:00:03]} 61. Re4+ {[%emt 0:01:39]} Kd8 {[%emt 0:00:30]} 62. Nf6 {[%emt 0:00:22]} Rf7 {[%emt 0:01:40]} 63. Re6 {[%emt 0:00:47]} Ne7 {[%emt 0:02:06]} 64. Rg4 {[%emt 0:01:04]} Rf5 {[%emt 0:01:49]} 65. Rd4+ {[%emt 0:00:12]} Kc8 {[%emt 0:00:33]} 66. Rd7 {[%emt 0:00:57]} R5xf6 {[%emt 0:01:27]} 67. Rexe7 {[%emt 0:00:07]} Rxf3+ {[%emt 0:00:34]} 68. Ke2 {[%emt 0:00:10]} Rxe7+ {[%emt 0:00:14]} 69. Rxe7 {[%emt 0:00:02]} Rb3 {[%emt 0:01:29]} 70. Rxa7 {[%emt 0:00:34]} Rb5 {[%emt 0:00:01]} 71. Kd3 {[%emt 0:00:18]} Kb8 {[%emt 0:00:03]} 72. Rh7 {[%emt 0:00:09]} a4 {[%emt 0:00:11]} 73. Rh4 {[%emt 0:01:58]} a3 {[%emt 0:00:40]} 74. Ra4 {[%emt 0:00:19]} Rb3+ {[%emt 0:00:15]} 75. Kc2 {[%emt 0:00:05]} Rh3 {[%emt 0:00:30]} 76. Kb1 {[%emt 0:00:09]} Kb7 {[%emt 0:00:42]} 77. Ka2 Kb6 {[%emt 0:00:10]} 78. Rxa3 {[%emt 0:00:15]} 1/2-1/2

[Event "WYCC 2018 G18"]
[Site "Halkidiki"]
[Date "2018.10.23"]
[Round "5"]
[White "Cvitan, Ena"]
[Black "Manova, Ivana"]
[Result "1-0"]
[ECO "A46"]
[WhiteElo "2034"]
[BlackElo "1951"]
[Annotator "NA"]
[PlyCount "71"]
[EventDate "2018.10.20"]
[EventType "swiss"]
[EventCountry "GRE"]
[SourceTitle "playchess.com"]
[Source "ChessBase"]
[SourceQuality "1"]
[TimeControl "40/5400+30:1800+30"]

1. d4 {[%emt 0:00:00]} Nf6 {[%emt 0:00:00]} 2. Nf3 {[%emt 0:00:00]} e6 {[%emt 0:00:00]} 3. Bf4 {[%emt 0:00:00]} c5 {[%emt 0:00:37]} 4. e3 {[%emt 0:00:32]} cxd4 {[%emt 0:00:44]} 5. exd4 {[%emt 0:00:21]} b6 {[%emt 0:01:01]} 6. Nbd2 {[%emt 0:02:07]} Be7 {[%emt 0:03:48]} 7. h3 {[%emt 0:01:30]} O-O {[%emt 0:01:14]} 8. Bd3 {[%emt 0:02:53]} Ba6 {[%emt 0:01:00]} 9. Bxa6 {[%emt 0:00:16]} Nxa6 {[%emt 0:00:02]} 10. c3 {[%emt 0:03:30]} b5 {[%emt 0:27:19]} 11. a4 {[%emt 0:10:03]} Qb6 {[%emt 0:06:23]} 12. axb5 {[%emt 0:19:22]} Qxb5 {[%emt 0:01:02]} 13. Qe2 {[%emt 0:02:10]} Qf5 {[%emt 0:05:08]} 14. Bg3 {[%emt 0:12:31]} Nb8 {[%emt 0:02:46]} 15. O-O {[%emt 0:02:56]} Nc6 {[%emt 0:03:42]} 16. Ra6 {[%emt 0:03:38]} Qc2 {[%emt 0:03:18]} 17. Qb5 {[%emt 0:02:40]} Nd5 {[%emt 0:04:37]} 18. Nc4 {[%emt 0:08:53]} f5 {[%emt 0:05:23]} 19. Be5 {[%emt 0:12:05]} f4 {[%emt 0:10:08]} 20. Rfa1 {[%emt 0:03:32]} Qe2 {[%emt 0:06:18]} 21. Rxc6 {[%emt 0:02:33]} dxc6 {[%emt 0:00:39]} 22. Qxc6 {[%emt 0:00:01]} Kh8 {[%emt 0:01:37]} 23. Ncd2 {[%emt 0:04:12]} Nb6 {[%emt 0:05:30]} 24. Qxe6 {[%emt 0:00:53]} Bf6 {[%emt 0:00:59]} 25. Re1 {[%emt 0:01:40]} Rae8 {[%emt 0:02:29]} 26. Qa2 {[%emt 0:00:46]} Qb5 {[%emt 0:01:55]} 27. Ne4 {[%emt 0:00:35]} Bxe5 {[%emt 0:03:07]} 28. Nxe5 {[%emt 0:00:06]} Re7 {[%emt 0:02:11]} 29. Ng5 {[%emt 0:01:34]} Nd5 {[%emt 0:00:48]} 30. Nef7+ {[%emt 0:01:40]} Rexf7 {[%emt 0:00:27]} 31. Nxf7+ {[%emt 0:00:04]} Kg8 {[%emt 0:00:17]} 32. Nd6 {[%emt 0:01:35]} Qc6 {[%emt 0:00:36]} 33. Re5 {[%emt 0:00:43]} Qxd6 {[%emt 0:00:26]} 34. Qxd5+ {[%emt 0:00:01]} Qxd5 {[%emt 0:00:23]} 35. Rxd5 {[%emt 0:00:02]} Rb8 {[%emt 0:00:07]} 36. b4 {[%emt 0:00:12]} 1-0